[Event "Torneo Nuevo Centro. Jornada 10"]
[Site "Chess.com"]
[Date "2020.08.21"]
[Round "3"]
[White "Serrano Requena, Guillem"]
[Black "Grigorev, Artur "]
[Result "1-0"]
[WhiteElo "1270"]
[BlackElo "943"]
[TimeControl "180+2"]
[EndTime "10:56:55 PDT"]
[Termination "Victoria de Guily351 por abandono"]

1. d4 {[%clk 0:03:01.9]} 1... d5 {[%clk 0:02:58.3]} 2. Nf3 {[%clk 0:03:01.4]}
2... Nc6 {[%clk 0:02:57.7]} 3. Bf4 {[%clk 0:02:51.5]} 3... Nf6 {[%clk
0:02:47.4]} 4. c4 {[%clk 0:02:51.1]} 4... dxc4 {[%clk 0:02:44.7]} 5. e3 {[%clk
0:02:51.5]} 5... b5 {[%clk 0:02:37.7]} 6. Nc3 {[%clk 0:02:51.5]} 6... Rb8 {[%clk
0:02:36.9]} 7. Nxb5 {[%clk 0:02:29.5]} 7... Rxb5 {[%clk 0:02:25.3]} 8. Qa4
{[%clk 0:02:23.8]} 8... a6 {[%clk 0:02:12.9]} 9. Bxc4 {[%clk 0:02:22]} 9... Nb8
{[%clk 0:01:56.1]} 10. Ne5 {[%clk 0:02:02.9]} 10... e6 {[%clk 0:01:50.3]} 11.
Bxb5+ {[%clk 0:02:01.1]} 11... axb5 {[%clk 0:01:47.2]} 12. Qxb5+ {[%clk
0:02:01.5]} 12... Bd7 {[%clk 0:01:47.3]} 13. Nxd7 {[%clk 0:01:57.7]} 13... Nbxd7
{[%clk 0:01:44.9]} 14. Rc1 {[%clk 0:01:55.9]} 14... Be7 {[%clk 0:01:30.5]} 15.
Rxc7 {[%clk 0:01:49.6]} 15... O-O {[%clk 0:01:25.3]} 16. O-O {[%clk 0:01:49.9]}
16... Qa8 {[%clk 0:01:13.9]} 17. Rxd7 {[%clk 0:01:37.4]} 17... Nxd7 {[%clk
0:01:10.1]} 18. Qxd7 {[%clk 0:01:37.6]} 18... Bh4 {[%clk 0:01:01.2]} 19. a4
{[%clk 0:01:28.1]} 19... Qb8 {[%clk 0:00:54.9]} 20. Bxb8 {[%clk 0:01:24.9]}
20... Rc8 {[%clk 0:00:54]} 21. Qxc8+ {[%clk 0:01:24.6]} 1

[Event "Torneo Nuevo Centro. Jornada 10"]
[Site "Chess.com"]
[Date "2020.08.21"]
[Round "3"]
[White "Miranda Calvo, Max Rodrigo"]
[Black "Beneyto de Ramon, Guillermo"]
[Result "0-1"]
[WhiteElo "1372"]
[BlackElo "1653"]
[TimeControl "180+2"]
[EndTime "10:57:33 PDT"]
[Termination "Victoria de GUILLETE por abandono"]

1. e4 {[%clk 0:03:01.9]} 1... Nf6 {[%clk 0:02:58.5]} 2. e5 {[%clk 0:02:57.5]}
2... Nd5 {[%clk 0:02:57.6]} 3. c4 {[%clk 0:02:56.2]} 3... Nb6 {[%clk 0:02:57.7]}
4. Nf3 {[%clk 0:02:55.8]} 4... d6 {[%clk 0:02:57.8]} 5. d4 {[%clk 0:02:55.2]}
5... dxe5 {[%clk 0:02:51.9]} 6. Nxe5 {[%clk 0:02:52.7]} 6... c6 {[%clk
0:02:51.8]} 7. Be3 {[%clk 0:02:31.5]} 7... Bf5 {[%clk 0:02:48.3]} 8. Nc3 {[%clk
0:02:25.6]} 8... N8d7 {[%clk 0:02:40.8]} 9. Nxd7 {[%clk 0:02:24.1]} 9... Qxd7
{[%clk 0:02:27.4]} 10. Be2 {[%clk 0:02:24.2]} 10... e6 {[%clk 0:02:27.5]} 11.
O-O {[%clk 0:02:22.1]} 11... Be7 {[%clk 0:02:27]} 12. c5 {[%clk 0:02:17.9]}
12... Nd5 {[%clk 0:02:27.2]} 13. Nxd5 {[%clk 0:02:16.6]} 13... cxd5 {[%clk
0:02:24.7]} 14. Qb3 {[%clk 0:02:10]} 14... O-O {[%clk 0:02:20.3]} 15. Bb5 {[%clk
0:02:07.2]} 15... Qc7 {[%clk 0:02:17]} 16. g3 {[%clk 0:01:57]} 16... a6 {[%clk
0:02:13.7]} 17. Bf4 {[%clk 0:01:56.1]} 17... Qc8 {[%clk 0:02:09.5]} 18. Be2
{[%clk 0:01:37.8]} 18... Bh3 {[%clk 0:02:04]} 19. Rfe1 {[%clk 0:01:37.8]} 19...
f6 {[%clk 0:01:37.1]} 20. Bf1 {[%clk 0:01:31.6]} 20... Bxf1 {[%clk 0:01:31.4]}
21. Rxf1 {[%clk 0:01:24.1]} 21... Ra7 {[%clk 0:01:17.8]} 22. Rfe1 {[%clk
0:01:19.8]} 22... Qd7 {[%clk 0:01:08.2]} 23. Rac1 {[%clk 0:01:09.1]} 23... Bd8
{[%clk 0:01:05.3]} 24. Qb6 {[%clk 0:00:43.4]} 0

[Event "Torneo Nuevo Centro. Jornada 10"]
[Site "Chess.com"]
[Date "2020.08.21"]
[Round "3"]
[White "Bercaru, Vlad Ionut"]
[Black "Perez Garcia, Jose Miguel"]
[Result "0-1"]
[WhiteElo "1756"]
[BlackElo "2064"]
[TimeControl "180+2"]
[EndTime "10:57:46 PDT"]
[Termination "Victoria de PEREZOV69 por jaque mate"]

1. c4 {[%clk 0:03:01.9]} 1... Nf6 {[%clk 0:02:58.2]} 2. Nc3 {[%clk 0:03:00.9]}
2... g6 {[%clk 0:02:57.1]} 3. g3 {[%clk 0:02:59.1]} 3... Bg7 {[%clk 0:02:58.3]}
4. Bg2 {[%clk 0:03:00.1]} 4... O-O {[%clk 0:03:00.2]} 5. Nf3 {[%clk 0:02:59.9]}
5... d6 {[%clk 0:03:02.1]} 6. O-O {[%clk 0:03:00.4]} 6... c5 {[%clk 0:02:58.1]}
7. d4 {[%clk 0:02:57.8]} 7... cxd4 {[%clk 0:02:59.1]} 8. Nxd4 {[%clk 0:02:58.5]}
8... a6 {[%clk 0:02:59.7]} 9. Bg5 {[%clk 0:02:53.5]} 9... Nbd7 {[%clk
0:03:00.1]} 10. e4 {[%clk 0:02:53.2]} 10... Ne5 {[%clk 0:03:00.3]} 11. Qe2
{[%clk 0:02:43.8]} 11... Qb6 {[%clk 0:02:57.8]} 12. Nb3 {[%clk 0:02:36.4]} 12...
Be6 {[%clk 0:02:56.3]} 13. Nd5 {[%clk 0:02:30.2]} 13... Bxd5 {[%clk 0:02:57.3]}
14. cxd5 {[%clk 0:02:22.1]} 14... h6 {[%clk 0:02:57.4]} 15. Be3 {[%clk
0:02:17.1]} 15... Qb4 {[%clk 0:02:56.5]} 16. f4 {[%clk 0:02:04.4]} 16... Ned7
{[%clk 0:02:55.2]} 17. Bd4 {[%clk 0:01:57.9]} 17... a5 {[%clk 0:02:51.6]} 18.
Bc3 {[%clk 0:01:55.5]} 18... Qb6+ {[%clk 0:02:51.7]} 19. Kh1 {[%clk 0:01:49]}
19... a4 {[%clk 0:02:52.2]} 20. Nd4 {[%clk 0:01:43]} 20... Rfc8 {[%clk
0:02:48.8]} 21. Rac1 {[%clk 0:01:35.3]} 21... Ne8 {[%clk 0:02:45.4]} 22. f5
{[%clk 0:01:28]} 22... Bxd4 {[%clk 0:02:45.2]} 23. Bxd4 {[%clk 0:01:26.7]} 23...
Qxd4 {[%clk 0:02:47.1]} 24. Rxc8 {[%clk 0:01:26.3]} 24... Rxc8 {[%clk 0:02:49]}
25. fxg6 {[%clk 0:01:27.2]} 25... fxg6 {[%clk 0:02:49.5]} 26. Bh3 {[%clk
0:01:25.5]} 26... Nef6 {[%clk 0:02:48.8]} 27. Rxf6 {[%clk 0:01:19.7]} 27... Qxf6
{[%clk 0:02:44.4]} 28. Bxd7 {[%clk 0:01:18.1]} 28... Rc1+ {[%clk 0:02:45.8]} 29.
Kg2 {[%clk 0:01:15.9]} 29... Qd4 {[%clk 0:02:42.4]} 30. Be6+ {[%clk 0:01:11.9]}
30... Kg7 {[%clk 0:02:42.6]} 31. Kh3 {[%clk 0:00:53.8]} 31... Qf6 {[%clk
0:02:38.5]} 32. Qe3 {[%clk 0:00:39.3]} 32... Rc2 {[%clk 0:02:32.4]} 33. Qd3
{[%clk 0:00:34.3]} 33... Qxb2 {[%clk 0:02:27.1]} 34. Qf3 {[%clk 0:00:21.6]}
34... Rxh2+ {[%clk 0:02:26.4]} 35. Kg4 {[%clk 0:00:21.4]} 35... h5+ {[%clk
0:02:27.6]} 36. Kg5 {[%clk 0:00:18.1]} 36... Qe5+ {[%clk 0:02:28.5]} 37. Bf5
{[%clk 0:00:13.5]} 37... Qf6+ {[%clk 0:02:22.3]} 38. Kf4 {[%clk 0:00:13.8]}
38... g5+ {[%clk 0:02:23.4]} 39. Ke3 {[%clk 0:00:12.4]} 39... Qc3# {[%clk
0:02:24.3]} 0

[Event "Torneo Nuevo Centro. Jornada 10"]
[Site "Chess.com"]
[Date "2020.08.21"]
[Round "3"]
[White "Fitzpatrick Dimas  , Andrew "]
[Black "Pardo Ruiz, Beatriz"]
[Result "0-1"]
[WhiteElo "1049"]
[BlackElo "1337"]
[TimeControl "180+2"]
[EndTime "10:57:46 PDT"]
[Termination "Victoria de trizPR6 por jaque mate"]

1. e4 {[%clk 0:02:59.7]} 1... e5 {[%clk 0:03:00.4]} 2. Nf3 {[%clk 0:03:00]} 2...
Nc6 {[%clk 0:02:56.9]} 3. Nc3 {[%clk 0:02:56.9]} 3... Bc5 {[%clk 0:02:58.3]} 4.
Bc4 {[%clk 0:02:57.1]} 4... Nf6 {[%clk 0:02:56.9]} 5. O-O {[%clk 0:02:57.5]}
5... d6 {[%clk 0:02:45.7]} 6. h3 {[%clk 0:02:55]} 6... Be6 {[%clk 0:02:45]} 7.
Bxe6 {[%clk 0:02:48.9]} 7... fxe6 {[%clk 0:02:46.9]} 8. d3 {[%clk 0:02:48.3]}
8... h6 {[%clk 0:02:45.3]} 9. Na4 {[%clk 0:02:45.9]} 9... Bb6 {[%clk 0:02:41.8]}
10. Nxb6 {[%clk 0:02:44.7]} 10... axb6 {[%clk 0:02:43.7]} 11. d4 {[%clk
0:02:43.4]} 11... Nxe4 {[%clk 0:02:32.6]} 12. dxe5 {[%clk 0:02:41]} 12... dxe5
{[%clk 0:02:29.5]} 13. Qe2 {[%clk 0:02:38.3]} 13... Nd6 {[%clk 0:01:59.3]} 14.
Nxe5 {[%clk 0:02:37.3]} 14... O-O {[%clk 0:01:52.4]} 15. Nxc6 {[%clk 0:02:36.3]}
15... bxc6 {[%clk 0:01:49.4]} 16. Qxe6+ {[%clk 0:02:36.6]} 16... Kh8 {[%clk
0:01:40.6]} 17. Qb3 {[%clk 0:02:33.5]} 17... Qd7 {[%clk 0:01:34.7]} 18. Qc3
{[%clk 0:02:33.7]} 18... Rae8 {[%clk 0:01:28.3]} 19. Bxh6 {[%clk 0:02:32]} 19...
Re6 {[%clk 0:01:15.8]} 20. Rae1 {[%clk 0:02:25.2]} 20... Rxh6 {[%clk 0:01:12.3]}
21. Rd1 {[%clk 0:02:13.2]} 21... Qf5 {[%clk 0:01:03.8]} 22. Qxc6 {[%clk
0:02:08.4]} 22... Rg6 {[%clk 0:00:48.5]} 23. a4 {[%clk 0:02:00.6]} 23... Qxh3
{[%clk 0:00:48.3]} 24. a5 {[%clk 0:01:57]} 24... bxa5 {[%clk 0:00:46.6]} 25. Ra1
{[%clk 0:01:53.7]} 25... Rf5 {[%clk 0:00:33.2]} 26. g3 {[%clk 0:01:43]} 26...
Rh5 {[%clk 0:00:17.9]} 27. Qa8+ {[%clk 0:01:37.7]} 27... Kh7 {[%clk 0:00:15.5]}
28. Rxa5 {[%clk 0:01:34.5]} 28... Qh2# {[%clk 0:00:13.5]} 0

[Event "Torneo Nuevo Centro. Jornada 10"]
[Site "Chess.com"]
[Date "2020.08.21"]
[Round "3"]
[White "Birnoveanu, Petru"]
[Black "Bendayán Claros, Aaron"]
[Result "0-1"]
[WhiteElo "1712"]
[BlackElo "1993"]
[TimeControl "180+2"]
[EndTime "10:57:59 PDT"]
[Termination "Victoria de Cuajada_Zero por abandono"]

1. e4 {[%clk 0:03:01.9]} 1... c6 {[%clk 0:03:00.6]} 2. d4 {[%clk 0:03:00]} 2...
d5 {[%clk 0:03:02.5]} 3. exd5 {[%clk 0:03:00.7]} 3... cxd5 {[%clk 0:03:03.2]} 4.
f4 {[%clk 0:03:01.5]} 4... Nf6 {[%clk 0:03:01.2]} 5. c3 {[%clk 0:03:01.5]} 5...
Bf5 {[%clk 0:03:02]} 6. Bd3 {[%clk 0:03:01]} 6... Bxd3 {[%clk 0:03:00.4]} 7.
Qxd3 {[%clk 0:03:01.2]} 7... Ne4 {[%clk 0:03:01]} 8. Nd2 {[%clk 0:03:01.4]} 8...
f5 {[%clk 0:03:01.2]} 9. Ngf3 {[%clk 0:02:58.8]} 9... Nc6 {[%clk 0:03:01.1]} 10.
Ne5 {[%clk 0:02:58.4]} 10... Nxe5 {[%clk 0:03:01.9]} 11. fxe5 {[%clk 0:02:58.7]}
11... e6 {[%clk 0:03:02.5]} 12. Nf3 {[%clk 0:02:56.8]} 12... Be7 {[%clk
0:03:02.2]} 13. O-O {[%clk 0:02:55.9]} 13... O-O {[%clk 0:03:01.3]} 14. a4
{[%clk 0:02:52.7]} 14... a6 {[%clk 0:02:59.5]} 15. Bd2 {[%clk 0:02:26.3]} 15...
Rc8 {[%clk 0:02:58.8]} 16. a5 {[%clk 0:02:20.5]} 16... h6 {[%clk 0:02:58.4]} 17.
b4 {[%clk 0:02:18]} 17... Qc7 {[%clk 0:02:52.2]} 18. Rac1 {[%clk 0:02:17.1]}
18... Qc4 {[%clk 0:02:52.6]} 19. Qb1 {[%clk 0:01:58.2]} 19... g5 {[%clk
0:02:48.4]} 20. Be1 {[%clk 0:01:52.5]} 20... Bxb4 {[%clk 0:02:35.5]} 21. Nd2
{[%clk 0:01:25]} 21... Nxd2 {[%clk 0:02:34.1]} 22. Bxd2 {[%clk 0:01:23.5]} 22...
Bxa5 {[%clk 0:02:28.9]} 23. Qxb7 {[%clk 0:01:22.3]} 23... Rc7 {[%clk 0:02:27.6]}
24. Qb2 {[%clk 0:01:10.3]} 24... Qd3 {[%clk 0:02:13.9]} 25. Rf3 {[%clk
0:00:41.3]} 25... Qb5 {[%clk 0:02:08.9]} 26. Qa3 {[%clk 0:00:35.8]} 26... Rfc8
{[%clk 0:01:56]} 27. Qd6 {[%clk 0:00:33]} 27... Rc6 {[%clk 0:01:49.7]} 28. Qe7
{[%clk 0:00:32.8]} 28... Rd8 {[%clk 0:01:39.7]} 29. Rcf1 {[%clk 0:00:21.1]}
29... Rf8 {[%clk 0:01:35.5]} 30. Qf6 {[%clk 0:00:17]} 30... Rxf6 {[%clk
0:01:35.5]} 0

[Event "Torneo Nuevo Centro. Jornada 10"]
[Site "Chess.com"]
[Date "2020.08.21"]
[Round "3"]
[White "Zamora Soler, Raul"]
[Black "Marques Montolio, Luis"]
[Result "1/2-1/2"]
[WhiteElo "1840"]
[BlackElo "1435"]
[TimeControl "180+2"]
[EndTime "10:58:22 PDT"]
[Termination "Partida en tablas por material insuficiente"]

1. e4 {[%clk 0:03:01.9]} 1... d5 {[%clk 0:02:59.4]} 2. exd5 {[%clk 0:03:02.7]}
2... Qxd5 {[%clk 0:03:00.8]} 3. Nc3 {[%clk 0:03:03.7]} 3... Qa5 {[%clk
0:03:02.3]} 4. Nf3 {[%clk 0:03:04.6]} 4... c6 {[%clk 0:03:03.8]} 5. Be2 {[%clk
0:03:05]} 5... Bf5 {[%clk 0:03:05]} 6. d3 {[%clk 0:03:05.4]} 6... e6 {[%clk
0:03:05.9]} 7. Bd2 {[%clk 0:03:06.2]} 7... Qc7 {[%clk 0:03:05.3]} 8. O-O {[%clk
0:03:06.1]} 8... Nf6 {[%clk 0:03:06.1]} 9. Nd4 {[%clk 0:03:05.3]} 9... Bg6
{[%clk 0:03:05.9]} 10. Bf3 {[%clk 0:03:04.8]} 10... Bd6 {[%clk 0:03:05.9]} 11.
h3 {[%clk 0:03:03]} 11... O-O {[%clk 0:03:04.4]} 12. Ne4 {[%clk 0:03:03.7]}
12... Nxe4 {[%clk 0:03:04.2]} 13. Bxe4 {[%clk 0:03:03.7]} 13... Nd7 {[%clk
0:03:02.5]} 14. Bxg6 {[%clk 0:03:04.2]} 14... hxg6 {[%clk 0:03:02]} 15. Bc3
{[%clk 0:03:05.2]} 15... Nf6 {[%clk 0:03:02]} 16. Qf3 {[%clk 0:03:03.7]} 16...
Be7 {[%clk 0:03:02.4]} 17. Rfe1 {[%clk 0:03:03.4]} 17... Nd5 {[%clk 0:03:00.3]}
18. Ne2 {[%clk 0:02:51]} 18... Nxc3 {[%clk 0:03:00.2]} 19. Nxc3 {[%clk
0:02:47.4]} 19... Rfd8 {[%clk 0:03:01.4]} 20. Re4 {[%clk 0:02:38.2]} 20... Rd7
{[%clk 0:02:54.2]} 21. Rae1 {[%clk 0:02:35.2]} 21... Rad8 {[%clk 0:02:53]} 22.
Rg4 {[%clk 0:02:31.6]} 22... Rd4 {[%clk 0:02:45]} 23. Ne2 {[%clk 0:02:13]} 23...
Rxg4 {[%clk 0:02:44.1]} 24. Qxg4 {[%clk 0:02:05.7]} 24... Bf6 {[%clk 0:02:44.5]}
25. Qb4 {[%clk 0:01:42]} 25... a5 {[%clk 0:02:40.3]} 26. Qb3 {[%clk 0:01:40.1]}
26... b5 {[%clk 0:02:38.1]} 27. c4 {[%clk 0:01:38.2]} 27... a4 {[%clk
0:02:38.7]} 28. Qc2 {[%clk 0:01:38.7]} 28... Qe5 {[%clk 0:02:31.5]} 29. Kf1
{[%clk 0:01:37.5]} 29... Qxb2 {[%clk 0:02:30.6]} 30. Qxb2 {[%clk 0:01:38.1]}
30... Bxb2 {[%clk 0:02:31]} 31. cxb5 {[%clk 0:01:39.2]} 31... cxb5 {[%clk
0:02:31.8]} 32. Rd1 {[%clk 0:01:38.2]} 32... Bf6 {[%clk 0:02:30.6]} 33. Ng3
{[%clk 0:01:38.9]} 33... b4 {[%clk 0:02:30.5]} 34. Rb1 {[%clk 0:01:39.7]} 34...
Rb8 {[%clk 0:02:25.1]} 35. Ne4 {[%clk 0:01:39.6]} 35... b3 {[%clk 0:02:26]} 36.
axb3 {[%clk 0:01:40.5]} 36... axb3 {[%clk 0:02:26.9]} 37. Nxf6+ {[%clk
0:01:41.5]} 37... gxf6 {[%clk 0:02:27.1]} 38. Ke2 {[%clk 0:01:43.4]} 38... Kf8
{[%clk 0:02:25.9]} 39. Kd2 {[%clk 0:01:44.5]} 39... Ke7 {[%clk 0:02:26.6]} 40.
Kc3 {[%clk 0:01:45.7]} 40... b2 {[%clk 0:02:24.7]} 41. Rxb2 {[%clk 0:01:46.5]}
41... Rxb2 {[%clk 0:02:26.1]} 42. Kxb2 {[%clk 0:01:47.5]} 42... Kd6 {[%clk
0:02:27.7]} 43. Kc3 {[%clk 0:01:46]} 43... Kd5 {[%clk 0:02:28.8]} 44. h4 {[%clk
0:01:43.8]} 44... f5 {[%clk 0:02:29.3]} 45. d4 {[%clk 0:01:43.8]} 45... f6
{[%clk 0:02:29.1]} 46. Kd3 {[%clk 0:01:44.5]} 46... e5 {[%clk 0:02:28]} 47. dxe5
{[%clk 0:01:45.6]} 47... fxe5 {[%clk 0:02:28.8]} 48. f3 {[%clk 0:01:45.3]} 48...
f4 {[%clk 0:02:16]} 49. Kd2 {[%clk 0:01:29.6]} 49... Kd4 {[%clk 0:02:17.2]} 50.
Ke2 {[%clk 0:01:30.6]} 50... e4 {[%clk 0:02:13]} 51. fxe4 {[%clk 0:01:30.9]}
51... Kxe4 {[%clk 0:02:13.9]} 52. Kf2 {[%clk 0:01:32]} 52... Kd4 {[%clk
0:02:09.6]} 53. Kf3 {[%clk 0:01:32.2]} 53... Ke5 {[%clk 0:02:10.5]} 54. g4
{[%clk 0:01:26.4]} 54... fxg3 {[%clk 0:02:10.1]} 55. Kxg3 {[%clk 0:01:27.4]}
55... Kf5 {[%clk 0:02:10.4]} 56. Kf3 {[%clk 0:01:28.5]} 56... Ke5 {[%clk
0:02:07.9]} 57. Kg4 {[%clk 0:01:29.3]} 57... Kf6 {[%clk 0:02:08.9]} 58. Kf4
{[%clk 0:01:30.4]} 58... Kg7 {[%clk 0:02:04.6]} 59. Kg5 {[%clk 0:01:31.1]} 59...
Kh7 {[%clk 0:02:05.5]} 60. h5 {[%clk 0:01:31.2]} 60... gxh5 {[%clk 0:02:05.7]}
61. Kxh5 {[%clk 0:01:32.3]} 1/2-1

[Event "Torneo Nuevo Centro. Jornada 10"]
[Site "Chess.com"]
[Date "2020.08.21"]
[Round "3"]
[White "Pedros Viudes, Santiago"]
[Black "Valmaña Cantó, Jaime"]
[Result "0-1"]
[WhiteElo "1922"]
[BlackElo "2412"]
[TimeControl "180+2"]
[EndTime "10:58:27 PDT"]
[Termination "Victoria de barberbirborbur por abandono"]

1. d4 {[%clk 0:03:01.9]} 1... Nf6 {[%clk 0:02:59.8]} 2. Nc3 {[%clk 0:03:02.9]}
2... d5 {[%clk 0:02:59.2]} 3. Bf4 {[%clk 0:03:02.5]} 3... Bf5 {[%clk 0:02:58.7]}
4. Nf3 {[%clk 0:02:51.6]} 4... e6 {[%clk 0:02:59.3]} 5. h3 {[%clk 0:02:52.2]}
5... Bd6 {[%clk 0:02:59.1]} 6. e3 {[%clk 0:02:48.5]} 6... O-O {[%clk 0:02:57.1]}
7. g4 {[%clk 0:02:49]} 7... Bg6 {[%clk 0:02:54]} 8. Bg2 {[%clk 0:02:49.3]} 8...
c5 {[%clk 0:02:52.1]} 9. Ne5 {[%clk 0:02:46.1]} 9... Nc6 {[%clk 0:02:46.8]} 10.
h4 {[%clk 0:02:41.8]} 10... cxd4 {[%clk 0:02:32.4]} 11. exd4 {[%clk 0:02:41.3]}
11... h5 {[%clk 0:02:11.3]} 12. Nxg6 {[%clk 0:02:02.5]} 12... fxg6 {[%clk
0:02:10.5]} 13. Bxd6 {[%clk 0:01:57.4]} 13... Qxd6 {[%clk 0:02:12.4]} 14. g5
{[%clk 0:01:58.7]} 14... Ng4 {[%clk 0:02:02.6]} 15. Rf1 {[%clk 0:01:50.3]} 15...
Qh2 {[%clk 0:01:58.3]} 16. Bf3 {[%clk 0:01:36]} 16... Qxh4 {[%clk 0:01:47.3]}
17. Bxg4 {[%clk 0:01:32.3]} 17... hxg4 {[%clk 0:01:31.4]} 18. Qd2 {[%clk
0:01:29.5]} 18... g3 {[%clk 0:01:28.1]} 19. O-O-O {[%clk 0:01:17.2]} 19... g2
{[%clk 0:01:28.3]} 20. Rg1 {[%clk 0:01:18.6]} 20... Rxf2 {[%clk 0:01:29.3]} 21.
Qe3 {[%clk 0:01:18.6]} 21... Qf4 {[%clk 0:01:23.8]} 22. Rde1 {[%clk 0:01:19.1]}
22... Nxd4 {[%clk 0:01:20.7]} 23. Qxf4 {[%clk 0:01:14]} 23... Rxf4 {[%clk
0:01:19.2]} 24. Rxg2 {[%clk 0:01:15.9]} 24... Kf7 {[%clk 0:01:13.2]} 25. Rd2
{[%clk 0:01:13.4]} 25... Rh8 {[%clk 0:01:10.2]} 26. Kb1 {[%clk 0:01:05.6]} 26...
Rh5 {[%clk 0:01:02.8]} 27. Ne2 {[%clk 0:00:56.6]} 27... Nxe2 {[%clk 0:00:52.4]}
28. Rdxe2 {[%clk 0:00:58.5]} 28... Re4 {[%clk 0:00:48.3]} 29. Rxe4 {[%clk
0:00:56.4]} 29... dxe4 {[%clk 0:00:48.7]} 30. b3 {[%clk 0:00:58.3]} 30... Rh4
{[%clk 0:00:43.8]} 31. Kc1 {[%clk 0:00:59.2]} 31... e5 {[%clk 0:00:44.4]} 32.
Kd2 {[%clk 0:01:00.2]} 32... Ke6 {[%clk 0:00:46]} 33. Rf1 {[%clk 0:01:01.3]}
33... Rf4 {[%clk 0:00:44.9]} 34. Rg1 {[%clk 0:01:00.1]} 34... Kf5 {[%clk
0:00:46.1]} 35. Ke3 {[%clk 0:01:00]} 35... Rf3+ {[%clk 0:00:47.3]} 36. Ke2
{[%clk 0:01:00.4]} 36... Kf4 {[%clk 0:00:48.1]} 0

[Event "Torneo Nuevo Centro. Jornada 10"]
[Site "Chess.com"]
[Date "2020.08.21"]
[Round "3"]
[White "Hernández Tomás, Efrén"]
[Black "Gracia Calvo, Andrés"]
[Result "0-1"]
[WhiteElo "1100"]
[BlackElo "1811"]
[TimeControl "180+2"]
[EndTime "10:58:27 PDT"]
[Termination "Victoria de andresjaque21 por abandono"]

1. e4 {[%clk 0:03:01.9]} 1... d5 {[%clk 0:03:00.3]} 2. exd5 {[%clk 0:03:01.9]}
2... Qxd5 {[%clk 0:03:00.9]} 3. Nc3 {[%clk 0:03:01.9]} 3... Qd6 {[%clk
0:03:01.5]} 4. Nf3 {[%clk 0:02:58.3]} 4... Nf6 {[%clk 0:03:01.7]} 5. Nb5 {[%clk
0:02:58.6]} 5... Qd8 {[%clk 0:02:52.2]} 6. Be2 {[%clk 0:02:52.7]} 6... c6 {[%clk
0:02:52.4]} 7. Nc3 {[%clk 0:02:52.1]} 7... Bg4 {[%clk 0:02:52.1]} 8. d3 {[%clk
0:02:52.3]} 8... e6 {[%clk 0:02:52.1]} 9. Bg5 {[%clk 0:02:52]} 9... Be7 {[%clk
0:02:52.1]} 10. Qd2 {[%clk 0:02:48.1]} 10... h6 {[%clk 0:02:50]} 11. h3 {[%clk
0:02:42.3]} 11... hxg5 {[%clk 0:02:43.6]} 12. Qxg5 {[%clk 0:02:38.5]} 12... Bxf3
{[%clk 0:02:33.8]} 13. Bxf3 {[%clk 0:02:28.5]} 13... g6 {[%clk 0:02:21.2]} 14.
O-O {[%clk 0:02:18.6]} 14... Nbd7 {[%clk 0:02:18.6]} 15. Rae1 {[%clk 0:02:05.5]}
15... Qc7 {[%clk 0:02:06]} 16. Qg3 {[%clk 0:01:56.4]} 16... Qxg3 {[%clk
0:02:00.2]} 17. fxg3 {[%clk 0:01:55]} 17... O-O-O {[%clk 0:01:53.1]} 18. Ne4
{[%clk 0:01:54.3]} 18... Nxe4 {[%clk 0:01:52.7]} 19. Rxe4 {[%clk 0:01:54.2]}
19... Nf6 {[%clk 0:01:47.6]} 20. Ra4 {[%clk 0:01:49]} 20... a6 {[%clk
0:01:44.1]} 21. Re1 {[%clk 0:01:33.2]} 21... Bc5+ {[%clk 0:01:40.2]} 22. Kh2
{[%clk 0:01:27]} 22... Nd5 {[%clk 0:01:35]} 23. Bxd5 {[%clk 0:01:25.4]} 23...
Rxd5 {[%clk 0:01:33.8]} 24. Rf1 {[%clk 0:01:24.4]} 24... f5 {[%clk 0:01:33.5]}
25. Rc4 {[%clk 0:01:18.7]} 25... Bd6 {[%clk 0:01:32.5]} 26. Re1 {[%clk 0:01:18]}
26... Kd7 {[%clk 0:01:31.9]} 27. Kg1 {[%clk 0:01:09.8]} 27... b5 {[%clk
0:01:31.2]} 28. Rc3 {[%clk 0:01:03.3]} 28... Bb4 {[%clk 0:01:30.7]} 29. Rxe6
{[%clk 0:00:54.7]} 29... Bxc3 {[%clk 0:01:23.4]} 30. Rxg6 {[%clk 0:00:54.7]}
30... Bxb2 {[%clk 0:01:23.1]} 31. Rg5 {[%clk 0:00:50.8]} 31... a5 {[%clk
0:01:18.8]} 32. g4 {[%clk 0:00:50.3]} 32... fxg4 {[%clk 0:01:18.4]} 33. Rxg4
{[%clk 0:00:50.1]} 33... Rf5 {[%clk 0:01:13.1]} 34. Rg3 {[%clk 0:00:34.7]} 34...
Rhf8 {[%clk 0:01:09.9]} 35. Kh2 {[%clk 0:00:33]} 35... Be5 {[%clk 0:01:09.7]}
0